[Event "*** Titled Tuesday Blitz"]
[Site "Chess.com"]
[Date "2019.09.03"]
[Round "8"]
[White "novocane"]
[Black "jorquerino"]
[Result "0-1"]
[WhiteElo "2188"]
[BlackElo "2313"]
[TimeControl "180+2"]
[EndTime "16:52:10 PDT"]
[Termination "jorquerino won on time"]

1. d4 {[%clk 0:03:01.7]} 1... Nf6 {[%clk 0:02:53.4]} 2. c4 {[%clk 0:03:02.8]}
2... d6 {[%clk 0:02:53.9]} 3. Nc3 {[%clk 0:03:04]} 3... e5 {[%clk 0:02:55]} 4.
d5 {[%clk 0:03:05.3]} 4... Be7 {[%clk 0:02:48.2]} 5. e4 {[%clk 0:03:05.2]} 5...
O-O {[%clk 0:02:47.7]} 6. f3 {[%clk 0:03:06.4]} 6... Ne8 {[%clk 0:02:46.9]} 7.
Nge2 {[%clk 0:02:46.3]} 7... Bg5 {[%clk 0:02:45.9]} 8. Ng3 {[%clk 0:02:46.5]}
8... Bxc1 {[%clk 0:02:45.3]} 9. Rxc1 {[%clk 0:02:44.2]} 9... a5 {[%clk
0:02:41.4]} 10. Bd3 {[%clk 0:02:37.6]} 10... Nd7 {[%clk 0:02:39.9]} 11. O-O
{[%clk 0:02:38.6]} 11... Nc5 {[%clk 0:02:40.6]} 12. a3 {[%clk 0:02:37.9]} 12...
g6 {[%clk 0:02:21.9]} 13. b4 {[%clk 0:02:37.3]} 13... axb4 {[%clk 0:02:17.4]}
14. axb4 {[%clk 0:02:39.2]} 14... Nxd3 {[%clk 0:02:18.3]} 15. Qxd3 {[%clk
0:02:41.1]} 15... Ng7 {[%clk 0:02:14.6]} 16. c5 {[%clk 0:02:41.3]} 16... f5
{[%clk 0:02:14.1]} 17. Qc4 {[%clk 0:02:28.5]} 17... f4 {[%clk 0:02:03.7]} 18.
Nh1 {[%clk 0:02:27.5]} 18... h5 {[%clk 0:01:54.4]} 19. Nf2 {[%clk 0:02:27.7]}
19... g5 {[%clk 0:01:52.7]} 20. cxd6 {[%clk 0:02:20.8]} 20... cxd6 {[%clk
0:01:53]} 21. Nb5 {[%clk 0:02:22.2]} 21... g4 {[%clk 0:01:33.1]} 22. fxg4 {[%clk
0:01:45]} 22... hxg4 {[%clk 0:01:33]} 23. g3 {[%clk 0:01:45.3]} 23... Nh5 {[%clk
0:01:21.2]} 24. Qc7 {[%clk 0:01:39.5]} 24... Qg5 {[%clk 0:01:03.6]} 25. Nxd6
{[%clk 0:01:32.1]} 25... fxg3 {[%clk 0:01:03.7]} 26. hxg3 {[%clk 0:01:23.2]}
26... Nxg3 {[%clk 0:01:01.7]} 27. Rfe1 {[%clk 0:00:36.9]} 27... Qf4 {[%clk
0:00:28.7]} 28. Nd3 {[%clk 0:00:16.6]} 28... Qf3 {[%clk 0:00:26.1]} 0-1

[Event "*** Titled Tuesday Blitz"]
[Site "Chess.com"]
[Date "2019.09.03"]
[Round "8"]
[White "xberli"]
[Black "grzechu96"]
[Result "0-1"]
[WhiteElo "2468"]
[BlackElo "2605"]
[TimeControl "180+2"]
[EndTime "16:52:14 PDT"]
[Termination "grzechu96 won by resignation"]

1. e4 {[%clk 0:03:01.9]} 1... c5 {[%clk 0:03:00]} 2. Nf3 {[%clk 0:03:03]} 2...
d6 {[%clk 0:02:59]} 3. d4 {[%clk 0:03:03.8]} 3... cxd4 {[%clk 0:03:00.9]} 4.
Nxd4 {[%clk 0:03:05.4]} 4... a6 {[%clk 0:02:58.7]} 5. Bd3 {[%clk 0:02:46.1]}
5... Nc6 {[%clk 0:02:57.1]} 6. Be3 {[%clk 0:02:41.6]} 6... Nf6 {[%clk
0:02:56.5]} 7. O-O {[%clk 0:02:31.3]} 7... Ng4 {[%clk 0:02:56.9]} 8. Nxc6 {[%clk
0:02:32.1]} 8... bxc6 {[%clk 0:02:58.2]} 9. Bf4 {[%clk 0:02:33]} 9... e5 {[%clk
0:02:45.7]} 10. Bg3 {[%clk 0:02:31.6]} 10... h5 {[%clk 0:02:40.5]} 11. h3 {[%clk
0:02:26]} 11... h4 {[%clk 0:02:41.9]} 12. hxg4 {[%clk 0:02:12.6]} 12... hxg3
{[%clk 0:02:42.9]} 13. fxg3 {[%clk 0:02:14.2]} 13... d5 {[%clk 0:02:39.1]} 14.
Kf2 {[%clk 0:02:06.4]} 14... Qb6+ {[%clk 0:02:34.7]} 15. Ke1 {[%clk 0:02:07.3]}
15... Qe3+ {[%clk 0:02:30.1]} 16. Qe2 {[%clk 0:02:04]} 16... Qxg3+ {[%clk
0:02:30.3]} 17. Qf2 {[%clk 0:02:01.1]} 17... Qxf2+ {[%clk 0:02:31.5]} 18. Rxf2
{[%clk 0:02:02.3]} 18... Bc5 {[%clk 0:02:25.3]} 19. Rf1 {[%clk 0:02:02.2]} 19...
Bxg4 {[%clk 0:02:26.4]} 20. Nd2 {[%clk 0:02:02.3]} 20... Ke7 {[%clk 0:02:25.1]}
21. Nf3 {[%clk 0:01:56.8]} 21... f6 {[%clk 0:02:25]} 22. Kd2 {[%clk 0:01:53.4]}
22... a5 {[%clk 0:02:22.8]} 23. Rae1 {[%clk 0:01:53.8]} 23... Kd6 {[%clk
0:02:17.4]} 24. Kc1 {[%clk 0:01:52.6]} 24... a4 {[%clk 0:02:18.2]} 25. a3 {[%clk
0:01:52]} 25... Rab8 {[%clk 0:02:19.8]} 26. c3 {[%clk 0:01:37.9]} 26... Rb7
{[%clk 0:02:14.1]} 27. Re2 {[%clk 0:01:37]} 27... Rbb8 {[%clk 0:02:11.5]} 28.
Bc2 {[%clk 0:01:35.1]} 28... Ra8 {[%clk 0:02:09]} 29. Rd1 {[%clk 0:01:35.9]}
29... Be6 {[%clk 0:02:07.9]} 30. Bb1 {[%clk 0:01:32]} 30... Ke7 {[%clk
0:02:06.6]} 31. Bc2 {[%clk 0:01:25.8]} 31... g5 {[%clk 0:02:06.8]} 32. Bb1
{[%clk 0:01:18.5]} 32... g4 {[%clk 0:02:05.9]} 33. Nd2 {[%clk 0:01:19.2]} 33...
Rh2 {[%clk 0:02:03.9]} 34. Bc2 {[%clk 0:01:15.2]} 34... Bb6 {[%clk 0:01:51.6]}
35. Rf1 {[%clk 0:01:13.2]} 35... Bc5 {[%clk 0:01:49.7]} 36. Rd1 {[%clk
0:01:13.7]} 36... Bc8 {[%clk 0:01:28.3]} 37. Bd3 {[%clk 0:01:11.8]} 37... Bb7
{[%clk 0:01:25.5]} 38. Nf1 {[%clk 0:01:05.9]} 38... Rh1 {[%clk 0:01:25.7]} 39.
Bc2 {[%clk 0:00:55.3]} 39... Ba6 {[%clk 0:01:24.1]} 40. Ree1 {[%clk 0:00:36.7]}
40... Bf2 {[%clk 0:01:22.5]} 41. exd5 {[%clk 0:00:24.6]} 41... cxd5 {[%clk
0:01:12.9]} 42. Ne3 {[%clk 0:00:19.9]} 42... Rxe1 {[%clk 0:01:11.3]} 43. Nxd5+
{[%clk 0:00:21]} 43... Kd6 {[%clk 0:01:11]} 0-1

[Event "*** Titled Tuesday Blitz"]
[Site "Chess.com"]
[Date "2019.09.03"]
[Round "8"]
[White "boasovietica"]
[Black "Denis_Palkovich"]
[Result "1-0"]
[WhiteElo "2441"]
[BlackElo "2227"]
[TimeControl "180+2"]
[EndTime "16:52:28 PDT"]
[Termination "boasovietica won by checkmate"]

1. e4 {[%clk 0:03:01.9]} 1... c6 {[%clk 0:03:00.3]} 2. Nf3 {[%clk 0:03:00.4]}
2... d5 {[%clk 0:03:01.1]} 3. Nc3 {[%clk 0:03:01.7]} 3... dxe4 {[%clk 0:03:02]}
4. Nxe4 {[%clk 0:03:02.7]} 4... Nf6 {[%clk 0:03:03.6]} 5. Qe2 {[%clk 0:03:02.5]}
5... Nxe4 {[%clk 0:03:02.8]} 6. Qxe4 {[%clk 0:03:04.4]} 6... Qd5 {[%clk
0:03:03.6]} 7. Qh4 {[%clk 0:03:05.3]} 7... e5 {[%clk 0:02:42.2]} 8. Bc4 {[%clk
0:02:56.5]} 8... Qd6 {[%clk 0:02:29]} 9. Qh5 {[%clk 0:02:21.7]} 9... Be6 {[%clk
0:02:06.6]} 10. Bxe6 {[%clk 0:02:18.2]} 10... Qxe6 {[%clk 0:02:08.5]} 11. Qxe5
{[%clk 0:02:19.1]} 11... Qxe5+ {[%clk 0:02:06.4]} 12. Nxe5 {[%clk 0:02:20.2]}
12... Nd7 {[%clk 0:02:06.2]} 13. Nxd7 {[%clk 0:02:18.2]} 13... Kxd7 {[%clk
0:02:08.1]} 14. O-O {[%clk 0:02:17.9]} 14... Re8 {[%clk 0:02:06.6]} 15. Rd1
{[%clk 0:02:12.4]} 15... Bc5 {[%clk 0:01:57.4]} 16. d4 {[%clk 0:02:08.7]} 16...
Bd6 {[%clk 0:01:50.8]} 17. Be3 {[%clk 0:02:05.6]} 17... f5 {[%clk 0:01:50.5]}
18. g3 {[%clk 0:01:55.9]} 18... h5 {[%clk 0:01:41]} 19. c4 {[%clk 0:01:47.2]}
19... h4 {[%clk 0:01:27]} 20. c5 {[%clk 0:01:42]} 20... Bc7 {[%clk 0:01:20.5]}
21. d5 {[%clk 0:01:37.1]} 21... cxd5 {[%clk 0:01:21.3]} 22. Rxd5+ {[%clk
0:01:36.7]} 22... Ke6 {[%clk 0:01:19.2]} 23. Rad1 {[%clk 0:01:35.7]} 23... hxg3
{[%clk 0:01:16.9]} 24. hxg3 {[%clk 0:01:35.2]} 24... Rd8 {[%clk 0:01:02.9]} 25.
Rxd8 {[%clk 0:01:24.8]} 25... Rxd8 {[%clk 0:01:04.8]} 26. Rc1 {[%clk 0:01:07.6]}
26... f4 {[%clk 0:00:51.1]} 27. gxf4 {[%clk 0:01:06.5]} 27... Kf5 {[%clk
0:00:51.4]} 28. Rc4 {[%clk 0:00:58.3]} 28... Kg4 {[%clk 0:00:29.4]} 29. Kg2
{[%clk 0:00:57.8]} 29... Rd1 {[%clk 0:00:24.5]} 30. c6 {[%clk 0:00:47.2]} 30...
b5 {[%clk 0:00:16.4]} 31. Re4 {[%clk 0:00:47.1]} 31... Rd6 {[%clk 0:00:15.4]}
32. Re7 {[%clk 0:00:44.1]} 32... Rxc6 {[%clk 0:00:14.4]} 33. Rxg7+ {[%clk
0:00:42.9]} 33... Kf5 {[%clk 0:00:15.9]} 34. Rg5+ {[%clk 0:00:42.1]} 34... Ke4
{[%clk 0:00:16.9]} 35. Rxb5 {[%clk 0:00:41.3]} 35... Rc2 {[%clk 0:00:17.5]} 36.
Rb4+ {[%clk 0:00:38.1]} 36... Kd3 {[%clk 0:00:12.1]} 37. Kf3 {[%clk 0:00:37.2]}
37... a5 {[%clk 0:00:11.1]} 38. Rd4# {[%clk 0:00:36.7]} 1-0

[Event "*** Titled Tuesday Blitz"]
[Site "Chess.com"]
[Date "2019.09.03"]
[Round "8"]
[White "Vuks91"]
[Black "ckgchess"]
[Result "0-1"]
[WhiteElo "2614"]
[BlackElo "2751"]
[TimeControl "180+2"]
[EndTime "16:52:45 PDT"]
[Termination "ckgchess won on time"]

1. d4 {[%clk 0:03:00.9]} 1... Nf6 {[%clk 0:03:00.9]} 2. Nf3 {[%clk 0:03:01.9]}
2... e6 {[%clk 0:03:01.5]} 3. Bf4 {[%clk 0:03:02.6]} 3... c5 {[%clk 0:03:02.8]}
4. e3 {[%clk 0:03:03.4]} 4... Nc6 {[%clk 0:03:03.9]} 5. Nbd2 {[%clk 0:03:03.6]}
5... Nh5 {[%clk 0:02:59.8]} 6. Bg5 {[%clk 0:02:59]} 6... f6 {[%clk 0:02:59.3]}
7. Bh4 {[%clk 0:02:58.5]} 7... g6 {[%clk 0:02:56.8]} 8. c3 {[%clk 0:02:37.3]}
8... Ng7 {[%clk 0:02:49.4]} 9. Ne4 {[%clk 0:02:23.6]} 9... g5 {[%clk 0:02:44.1]}
10. Bg3 {[%clk 0:02:01.3]} 10... cxd4 {[%clk 0:02:44.2]} 11. exd4 {[%clk
0:01:49.2]} 11... d5 {[%clk 0:02:44.9]} 12. Ned2 {[%clk 0:01:44.8]} 12... h5
{[%clk 0:02:27.5]} 13. h4 {[%clk 0:00:51.7]} 13... g4 {[%clk 0:02:27.4]} 14. Ng1
{[%clk 0:00:51.3]} 14... Nf5 {[%clk 0:02:26.5]} 15. Bd3 {[%clk 0:00:44.9]} 15...
Nxg3 {[%clk 0:02:26.3]} 16. fxg3 {[%clk 0:00:46.8]} 16... Bd6 {[%clk 0:02:27.5]}
17. Ne2 {[%clk 0:00:46]} 17... Qc7 {[%clk 0:02:20.8]} 18. O-O {[%clk 0:00:25.8]}
18... Bd7 {[%clk 0:02:21.7]} 19. Nf4 {[%clk 0:00:21.7]} 19... O-O-O {[%clk
0:02:22]} 20. b4 {[%clk 0:00:20.6]} 20... Bxf4 {[%clk 0:02:17.7]} 21. gxf4
{[%clk 0:00:19.3]} 21... e5 {[%clk 0:02:17]} 22. b5 {[%clk 0:00:17.8]} 22... Ne7
{[%clk 0:02:18.5]} 23. fxe5 {[%clk 0:00:15.6]} 23... fxe5 {[%clk 0:02:20.4]} 24.
dxe5 {[%clk 0:00:14]} 24... Kb8 {[%clk 0:02:02.4]} 25. Rc1 {[%clk 0:00:11.3]}
25... Qxe5 {[%clk 0:01:44]} 26. Qe1 {[%clk 0:00:11.6]} 26... Qd6 {[%clk
0:01:42.7]} 27. Qe3 {[%clk 0:00:10.9]} 27... Rhf8 {[%clk 0:01:33.4]} 28. Nb3
{[%clk 0:00:10.3]} 28... Nf5 {[%clk 0:01:22.7]} 29. Bxf5 {[%clk 0:00:10.1]}
29... Bxf5 {[%clk 0:01:24.6]} 30. Nd4 {[%clk 0:00:08.4]} 30... Be4 {[%clk
0:01:25.6]} 31. Rxf8 {[%clk 0:00:09.3]} 31... Rxf8 {[%clk 0:01:25.1]} 32. Rf1
{[%clk 0:00:04.7]} 32... Rxf1+ {[%clk 0:01:22.2]} 33. Kxf1 {[%clk 0:00:06.6]}
33... Qh2 {[%clk 0:01:24.1]} 34. Qf2 {[%clk 0:00:07.4]} 34... Qh1+ {[%clk
0:01:11.7]} 35. Ke2 {[%clk 0:00:08.2]} 35... Qxg2 {[%clk 0:01:12.8]} 36. Qxg2
{[%clk 0:00:09.2]} 36... Bxg2 {[%clk 0:01:14.7]} 37. Ne6 {[%clk 0:00:09]} 37...
Be4 {[%clk 0:01:09.4]} 38. Nf4 {[%clk 0:00:09.3]} 38... Kc7 {[%clk 0:01:08.3]}
39. Nxh5 {[%clk 0:00:08.9]} 39... Kb6 {[%clk 0:01:10]} 40. Nf6 {[%clk
0:00:09.9]} 40... Bb1 {[%clk 0:01:03.1]} 41. h5 {[%clk 0:00:08.5]} 41... g3
{[%clk 0:01:02.3]} 42. Kf3 {[%clk 0:00:08.1]} 42... Kxb5 {[%clk 0:01:03.6]} 43.
Nxd5 {[%clk 0:00:05.1]} 43... Bxa2 {[%clk 0:01:04.2]} 44. h6 {[%clk 0:00:04.8]}
44... Bxd5+ {[%clk 0:01:05.2]} 0-1

[Event "*** Titled Tuesday Blitz"]
[Site "Chess.com"]
[Date "2019.09.03"]
[Round "8"]
[White "INLOVEWITHF"]
[Black "imdvb6307"]
[Result "0-1"]
[WhiteElo "2301"]
[BlackElo "2435"]
[TimeControl "180+2"]
[EndTime "16:52:46 PDT"]
[Termination "imdvb6307 won by resignation"]

1. Nf3 {[%clk 0:03:01.9]} 1... f5 {[%clk 0:02:59.6]} 2. d3 {[%clk 0:03:01.5]}
2... Nc6 {[%clk 0:02:59.3]} 3. d4 {[%clk 0:02:59.4]} 3... d6 {[%clk 0:02:47.4]}
4. g3 {[%clk 0:02:47.5]} 4... g6 {[%clk 0:02:45.3]} 5. Bg2 {[%clk 0:02:44.6]}
5... Bg7 {[%clk 0:02:46.4]} 6. d5 {[%clk 0:02:44.3]} 6... Ne5 {[%clk 0:02:46.9]}
7. Nd4 {[%clk 0:02:44.6]} 7... Nf6 {[%clk 0:02:29.8]} 8. O-O {[%clk 0:02:45.1]}
8... O-O {[%clk 0:02:30.5]} 9. Na3 {[%clk 0:02:32.7]} 9... h6 {[%clk 0:02:11.7]}
10. c4 {[%clk 0:02:31]} 10... g5 {[%clk 0:01:50.3]} 11. Ne6 {[%clk 0:02:31]}
11... Bxe6 {[%clk 0:01:50.7]} 12. dxe6 {[%clk 0:02:32.9]} 12... c6 {[%clk
0:01:48.6]} 13. f4 {[%clk 0:02:31.2]} 13... gxf4 {[%clk 0:01:49.3]} 14. Bxf4
{[%clk 0:02:33.1]} 14... Qb6+ {[%clk 0:01:47.6]} 15. e3 {[%clk 0:02:18.7]} 15...
Qxb2 {[%clk 0:01:45.1]} 16. Qa4 {[%clk 0:02:06.9]} 16... Qb6 {[%clk 0:01:25.1]}
17. Rab1 {[%clk 0:02:05.8]} 17... Qc7 {[%clk 0:01:25.2]} 18. c5 {[%clk
0:02:05.9]} 18... Nd3 {[%clk 0:01:13.7]} 19. cxd6 {[%clk 0:01:57.1]} 19... exd6
{[%clk 0:01:14.2]} 20. e7 {[%clk 0:01:57.9]} 20... Rf7 {[%clk 0:01:11.6]} 21.
Qc4 {[%clk 0:01:57.5]} 21... Nxf4 {[%clk 0:01:10.6]} 22. Rxf4 {[%clk 0:01:55.5]}
22... d5 {[%clk 0:01:07.3]} 23. Nb5 {[%clk 0:01:51.4]} 23... Qb6 {[%clk
0:00:46.4]} 24. Qd3 {[%clk 0:01:07.6]} 24... cxb5 {[%clk 0:00:45.7]} 25. Rxb5
{[%clk 0:01:09.5]} 25... Qa6 {[%clk 0:00:37.5]} 26. Bxd5 {[%clk 0:01:04.8]}
26... Nxd5 {[%clk 0:00:38]} 27. Qxd5 {[%clk 0:01:06.6]} 27... Qc6 {[%clk
0:00:19.3]} 28. Qd8+ {[%clk 0:00:25.9]} 28... Qe8 {[%clk 0:00:19.4]} 29. Qxe8+
{[%clk 0:00:25.1]} 29... Rxe8 {[%clk 0:00:19.8]} 30. Rxb7 {[%clk 0:00:26.7]}
30... Rexe7 {[%clk 0:00:20.9]} 31. Rxe7 {[%clk 0:00:24.8]} 31... Rxe7 {[%clk
0:00:22]} 32. Rxf5 {[%clk 0:00:26.4]} 32... Rxe3 {[%clk 0:00:23]} 33. Ra5 {[%clk
0:00:23.1]} 33... Bd4 {[%clk 0:00:23.1]} 34. Kg2 {[%clk 0:00:23.3]} 34... Re2+
{[%clk 0:00:23.6]} 35. Kh3 {[%clk 0:00:24.6]} 35... Bg1 {[%clk 0:00:24.6]} 36.
Kg4 {[%clk 0:00:25.7]} 36... Rxh2 {[%clk 0:00:24.5]} 37. Rd5 {[%clk 0:00:23.4]}
37... Kf7 {[%clk 0:00:24.9]} 38. Kf5 {[%clk 0:00:22.7]} 38... Rf2+ {[%clk
0:00:25.1]} 39. Kg4 {[%clk 0:00:24.3]} 39... Rxa2 {[%clk 0:00:25.2]} 40. Rf5+
{[%clk 0:00:23.8]} 40... Kg6 {[%clk 0:00:25.1]} 41. Rd5 {[%clk 0:00:24.5]} 41...
Bb6 {[%clk 0:00:25.8]} 42. Rd6+ {[%clk 0:00:25.3]} 42... Kg7 {[%clk 0:00:26.9]}
43. Kf5 {[%clk 0:00:25]} 43... Ra5+ {[%clk 0:00:27.8]} 44. Kg4 {[%clk
0:00:25.6]} 0-1

[Event "*** Titled Tuesday Blitz"]
[Site "Chess.com"]
[Date "2019.09.03"]
[Round "8"]
[White "alishersuleymenov"]
[Black "Fighterman91"]
[Result "1-0"]
[WhiteElo "2667"]
[BlackElo "2740"]
[TimeControl "180+2"]
[EndTime "16:52:52 PDT"]
[Termination "alishersuleymenov won by resignation"]

1. d4 {[%clk 0:03:01.9]} 1... Nf6 {[%clk 0:02:59.7]} 2. Nf3 {[%clk 0:03:03]}
2... e6 {[%clk 0:03:01]} 3. Bf4 {[%clk 0:03:04]} 3... c5 {[%clk 0:02:58.6]} 4.
e3 {[%clk 0:03:05.3]} 4... Nc6 {[%clk 0:02:58.8]} 5. c3 {[%clk 0:03:06.2]} 5...
Be7 {[%clk 0:02:58.2]} 6. Nbd2 {[%clk 0:02:57.4]} 6... Nh5 {[%clk 0:02:56.2]} 7.
Bg3 {[%clk 0:02:58.2]} 7... d5 {[%clk 0:02:55.5]} 8. Bd3 {[%clk 0:02:58.2]} 8...
Nxg3 {[%clk 0:02:52.8]} 9. hxg3 {[%clk 0:02:58.7]} 9... Qb6 {[%clk 0:02:54.1]}
10. Rb1 {[%clk 0:02:56.1]} 10... Bd7 {[%clk 0:02:42.5]} 11. dxc5 {[%clk
0:02:53.8]} 11... Qxc5 {[%clk 0:02:41.4]} 12. Qc2 {[%clk 0:02:44.9]} 12... h6
{[%clk 0:02:32.4]} 13. b4 {[%clk 0:02:45.3]} 13... Qd6 {[%clk 0:02:31.2]} 14. a4
{[%clk 0:02:43.6]} 14... Rc8 {[%clk 0:02:30.4]} 15. Qd1 {[%clk 0:02:32.9]} 15...
Ne5 {[%clk 0:02:31.1]} 16. Qc2 {[%clk 0:02:00.6]} 16... Bf6 {[%clk 0:02:24.7]}
17. Nxe5 {[%clk 0:01:51.2]} 17... Qxe5 {[%clk 0:02:21.8]} 18. c4 {[%clk
0:01:52.5]} 18... dxc4 {[%clk 0:02:16]} 19. Nxc4 {[%clk 0:01:54.4]} 19... Qc3+
{[%clk 0:01:55.3]} 20. Qxc3 {[%clk 0:01:55.3]} 20... Bxc3+ {[%clk 0:01:57.2]}
21. Ke2 {[%clk 0:01:57.2]} 21... Ke7 {[%clk 0:01:59.1]} 22. Rhc1 {[%clk
0:01:44.4]} 22... Bf6 {[%clk 0:02:00.6]} 23. b5 {[%clk 0:01:44.6]} 23... Rc7
{[%clk 0:01:44.2]} 24. b6 {[%clk 0:01:29.5]} 24... axb6 {[%clk 0:01:44]} 25.
Nxb6 {[%clk 0:01:31.4]} 25... Rxc1 {[%clk 0:01:39.6]} 26. Rxc1 {[%clk
0:01:33.3]} 26... Bc6 {[%clk 0:01:40.3]} 27. Bb5 {[%clk 0:00:53.9]} 27... Bxb5+
{[%clk 0:01:28.3]} 28. axb5 {[%clk 0:00:55.8]} 28... Kd6 {[%clk 0:01:29.9]} 29.
f4 {[%clk 0:00:38.5]} 29... Bd8 {[%clk 0:01:10.3]} 30. Nc4+ {[%clk 0:00:30.5]}
30... Ke7 {[%clk 0:01:07.1]} 31. e4 {[%clk 0:00:24.5]} 31... Bc7 {[%clk
0:01:06.9]} 32. b6 {[%clk 0:00:25.7]} 32... Bb8 {[%clk 0:01:06.1]} 33. Na5
{[%clk 0:00:25.3]} 33... Bd6 {[%clk 0:00:38.3]} 34. e5 {[%clk 0:00:22.5]} 34...
Bb8 {[%clk 0:00:35.3]} 35. Nxb7 {[%clk 0:00:23.7]} 35... f6 {[%clk 0:00:37.2]}
36. Na5 {[%clk 0:00:16.5]} 36... fxe5 {[%clk 0:00:38.1]} 37. Nc6+ {[%clk
0:00:17.7]} 37... Kf6 {[%clk 0:00:38.5]} 38. fxe5+ {[%clk 0:00:18.2]} 38... Bxe5
{[%clk 0:00:36.5]} 39. Rf1+ {[%clk 0:00:18.7]} 39... Kg5 {[%clk 0:00:37.9]} 40.
Nxe5 {[%clk 0:00:19.7]} 40... Rb8 {[%clk 0:00:39.8]} 41. Rb1 {[%clk 0:00:19.1]}
41... Kf5 {[%clk 0:00:41.2]} 42. Nd7 {[%clk 0:00:19.8]} 42... Rb7 {[%clk
0:00:42.7]} 43. Nc5 {[%clk 0:00:19.8]} 43... Rxb6 {[%clk 0:00:44.6]} 44. Rxb6
{[%clk 0:00:20.6]} 44... Kg4 {[%clk 0:00:46.1]} 45. Rxe6 {[%clk 0:00:21.2]}
45... g5 {[%clk 0:00:48]} 46. Rxh6 {[%clk 0:00:20.7]} 46... Kf5 {[%clk
0:00:49.5]} 47. g4+ {[%clk 0:00:21.6]} 47... Kxg4 {[%clk 0:00:51.4]} 48. Ne4
{[%clk 0:00:22.7]} 48... Kf4 {[%clk 0:00:52.5]} 49. Nxg5 {[%clk 0:00:24]} 49...
Kg3 {[%clk 0:00:53.8]} 50. Rh8 {[%clk 0:00:22.7]} 1-0

[Event "*** Titled Tuesday Blitz"]
[Site "Chess.com"]
[Date "2019.09.03"]
[Round "8"]
[White "JakeCarlosBanawa"]
[Black "Mikhail_Golubev"]
[Result "0-1"]
[WhiteElo "2498"]
[BlackElo "2438"]
[TimeControl "180+2"]
[EndTime "16:52:56 PDT"]
[Termination "Mikhail_Golubev won on time"]

1. d4 {[%clk 0:03:01.9]} 1... Nf6 {[%clk 0:03:00.1]} 2. c4 {[%clk 0:03:01.8]}
2... g6 {[%clk 0:03:01.2]} 3. Nc3 {[%clk 0:03:03]} 3... Bg7 {[%clk 0:03:01.9]}
4. e4 {[%clk 0:03:03.8]} 4... d6 {[%clk 0:03:02.8]} 5. Nf3 {[%clk 0:03:05]} 5...
O-O {[%clk 0:03:03]} 6. Be2 {[%clk 0:03:06.6]} 6... e5 {[%clk 0:03:03.9]} 7. O-O
{[%clk 0:03:08.2]} 7... Nc6 {[%clk 0:03:04.8]} 8. d5 {[%clk 0:03:09.7]} 8... Ne7
{[%clk 0:03:05.8]} 9. Ne1 {[%clk 0:03:11.3]} 9... Ne8 {[%clk 0:03:05.7]} 10. Be3
{[%clk 0:03:12.8]} 10... f5 {[%clk 0:03:06.5]} 11. f3 {[%clk 0:03:14.4]} 11...
f4 {[%clk 0:03:07.6]} 12. Bf2 {[%clk 0:03:16.1]} 12... g5 {[%clk 0:03:08.6]} 13.
c5 {[%clk 0:03:17.7]} 13... Ng6 {[%clk 0:03:05.2]} 14. a4 {[%clk 0:03:08.5]}
14... h5 {[%clk 0:03:04.6]} 15. a5 {[%clk 0:03:08.8]} 15... Rf7 {[%clk 0:03:01]}
16. cxd6 {[%clk 0:03:04]} 16... Nxd6 {[%clk 0:02:51.2]} 17. Nd3 {[%clk 0:02:54]}
17... Bf8 {[%clk 0:02:43.8]} 18. Nc5 {[%clk 0:02:44.1]} 18... Qf6 {[%clk
0:02:38.7]} 19. Qb3 {[%clk 0:02:36.7]} 19... g4 {[%clk 0:02:24.9]} 20. Ne6
{[%clk 0:02:36.2]} 20... g3 {[%clk 0:01:51.7]} 21. Bc5 {[%clk 0:02:11.6]} 21...
gxh2+ {[%clk 0:01:45.2]} 22. Kh1 {[%clk 0:02:12.3]} 22... Nh4 {[%clk 0:01:41.3]}
23. Nb5 {[%clk 0:01:58.5]} 23... Nxb5 {[%clk 0:01:18.1]} 24. Bxb5 {[%clk
0:01:25.8]} 24... Bxc5 {[%clk 0:01:10.5]} 25. Nxc5 {[%clk 0:01:26.2]} 25... Qg5
{[%clk 0:00:57.1]} 26. Rf2 {[%clk 0:01:24.4]} 26... Qg3 {[%clk 0:00:57.7]} 27.
Raf1 {[%clk 0:01:16.5]} 27... Rg7 {[%clk 0:00:11.2]} 28. d6+ {[%clk 0:00:20.7]}
28... Kh8 {[%clk 0:00:12.1]} 29. d7 {[%clk 0:00:21.8]} 29... Bxd7 {[%clk
0:00:12.5]} 30. Bxd7 {[%clk 0:00:22.5]} 30... Nxg2 {[%clk 0:00:12.9]} 31. Ne6
{[%clk 0:00:18.5]} 31... Rxd7 {[%clk 0:00:08.4]} 32. Rxg2 {[%clk 0:00:17]} 32...
Rg8 {[%clk 0:00:07.5]} 33. Rxg3 {[%clk 0:00:15.2]} 33... fxg3 {[%clk 0:00:08.5]}
34. Qc2 {[%clk 0:00:13.1]} 34... h4 {[%clk 0:00:09.2]} 35. Kg2 {[%clk
0:00:13.4]} 35... h3+ {[%clk 0:00:07.8]} 36. Kxh3 {[%clk 0:00:14.5]} 36... g2
{[%clk 0:00:08.6]} 37. Kxh2 {[%clk 0:00:07.5]} 37... gxf1=Q {[%clk 0:00:08.6]}
0-1